bitfinex-derivatives/quotes_BTCF0:USTF0_20250309
["timestamp","ask_amount","ask_price","bid_price","bid_amount"]
[1741563340020,0.5457807,80946.0,80938.0,0.3608]
[1741563340021,0.061784,80942.0,80938.0,0.3608]
[1741563340223,0.2437,80941.0,80939.0,0.253]
[1741563340429,0.1235634,80945.0,80939.0,0.5048]
[1741563340622,0.1235683,80942.0,80939.0,0.5048]
[1741563341330,0.3672642,80945.0,80939.0,0.5048]
[1741563341633,0.1235705,80940.0,80939.0,0.5048]
[1741563342036,0.1235705,80940.0,80939.0,0.253]
[1741563342229,0.1235812,80933.0,80932.0,0.11124]
[1741563342536,0.4924,80939.0,80924.0,0.3608]
[1741563342729,0.1235934,80925.0,80924.0,0.3608]
[1741563343433,0.123598,80922.0,80914.0,0.3608]
[1741563344127,0.2416,80923.0,80921.0,0.36098545]
[1741563344329,0.2508,80922.0,80921.0,0.36098545]
[1741563344530,0.01208295,80925.0,80921.0,0.36098545]
[1741563344731,0.5541938,80929.0,80921.0,0.36098545]
[1741563344930,0.4924,80929.0,80921.0,0.36098545]
[1741563345238,0.2508,80929.0,80928.0,0.3608]
[1741563345433,0.2179,80933.0,80928.0,0.3608]
[1741563345732,0.1112,80934.0,80928.0,0.3608]
[1741563345925,0.22954657,80947.0,80930.0,0.1235848]
[1741563346125,0.22954657,80947.0,80929.0,1.8608]
[1741563346126,0.2509,80949.0,80940.0,0.3608]
[1741563346326,0.01174945,80958.0,80940.0,0.3608]
[1741563346526,0.01174945,80958.0,80952.0,0.3608]
[1741563346733,0.2509,80961.0,80952.0,0.3608]
[1741563346936,0.01183222,80964.0,80963.0,0.1235354]
[1741563347130,0.01183222,80964.0,80959.0,0.3608]
[1741563347131,0.01183222,80964.0,80962.0,0.4843355]
[1741563347439,0.01183222,80964.0,80962.0,0.3608]
[1741563347737,0.1235354,80963.0,80962.0,0.3608]
[1741563347941,0.0617652,80967.0,80962.0,0.3608]
[1741563348235,0.3127626,80970.0,80959.0,0.47196]
[1741563348436,0.1235293,80967.0,80966.0,0.3608]
[1741563348636,0.12354,80960.0,80959.0,0.47196]
[1741563348843,0.14723391,80971.0,80959.0,0.3608]
[1741563349042,0.1235293,80967.0,80966.0,0.3608]
[1741563351936,0.1235293,80967.0,80946.0,0.0120615]
[1741563351937,0.2179,80967.0,80947.0,0.36098533]
[1741563352141,0.1235583,80948.0,80947.0,0.36098533]
[1741563352326,0.1235583,80948.0,80947.0,0.37020986]
[1741563352731,0.1235583,80948.0,80947.0,0.00940986]
[1741563352934,0.1235873,80929.0,80928.0,0.3608]
[1741563353142,0.1235904,80927.0,80916.0,0.3608]
[1741563353332,0.13543349,80927.0,80916.0,0.3608]
[1741563353528,0.11243349,80927.0,80923.0,0.3608]
[1741563353827,0.62173349,80927.0,80923.0,0.3608]
[1741563354232,0.1235949,80924.0,80923.0,0.3608]
[1741563354435,0.1236026,80919.0,80918.0,0.00018533]
[1741563355025,0.4844026,80919.0,80918.0,0.00018533]
[1741563356943,0.3608,80919.0,80904.0,0.00015639]
[1741563357137,0.484424,80905.0,80904.0,0.00924279]
[1741563357443,1.26798,80905.0,80876.0,0.00370914]
[1741563357642,0.1236645,80879.0,80876.0,0.00370914]
[1741563357832,0.1236643,80879.0,80876.0,0.00370914]
[1741563358032,0.172868,80884.0,80876.0,0.00370914]
[1741563358033,0.35474,80884.0,80876.0,0.00370914]
[1741563358233,0.1236596,80882.0,80872.0,0.01178547]
[1741563358533,0.26019016,80883.0,80869.0,0.00018547]
[1741563358534,0.27190601,80883.0,80869.0,0.00018547]
[1741563358735,0.1236671,80877.0,80870.0,0.2435]
[1741563358936,0.1236649,80879.0,80870.0,0.2435]
[1741563359245,0.3608,80874.0,80869.0,0.00018547]
[1741563359440,0.1236775,80870.0,80869.0,0.00018547]
[1741563360335,0.3608,80889.0,80869.0,0.00018547]
[1741563360641,0.4226244,80889.0,80869.0,0.00018547]
[1741563360951,0.2554,80878.0,80869.0,0.00018547]
[1741563361244,0.2324,80878.0,80869.0,0.00018547]
[1741563361652,0.2324,80878.0,80842.0,0.11104]
[1741563361653,0.1236958,80858.0,80857.0,0.00945353]
[1741563361945,0.47197499,80858.0,80840.0,0.37006533]
[1741563362140,0.1237218,80841.0,80840.0,0.37006533]
[1741563362348,0.1237218,80841.0,80840.0,0.00926533]
[1741563362545,0.1237234,80840.0,80831.0,0.2402]
[1741563362754,0.4845234,80840.0,80839.0,0.44986594]
[1741563363046,0.1237356,80832.0,80831.0,0.00018547]
[1741563363251,0.8130956,80832.0,80831.0,0.00018547]
[1741563363455,0.1237479,80824.0,80822.0,0.00937117]
[1741563363745,0.7017454,80832.0,80822.0,0.00937117]
[1741563363746,0.2574,80831.0,80822.0,0.00937117]
[1741563363941,0.21763478,80832.0,80831.0,0.1237371]
[1741563364139,0.3608,80850.0,80831.0,0.3608]
[1741563364342,0.00064,80850.0,80849.0,0.3608]
[1741563364653,0.21752,80871.0,80850.0,0.0618534]
[1741563364854,0.21752,80871.0,80863.0,0.3608]
[1741563365147,0.00018559,80867.0,80866.0,0.1236822]
[1741563365346,0.00031914,80867.0,80866.0,0.1236822]
[1741563365551,0.00031914,80867.0,80865.0,0.1236841]
[1741563365860,0.00031914,80867.0,80864.0,0.24]
[1741563366067,0.1236851,80865.0,80864.0,0.24]
[1741563366764,0.00031914,80867.0,80864.0,0.24]
[1741563367161,0.06216044,80867.0,80863.0,0.00942496]
[1741563367355,0.1236958,80858.0,80857.0,0.00018559]
[1741563367661,0.123728,80837.0,80833.0,0.00112]
[1741563367853,0.12384804,80837.0,80834.0,0.2489]
[1741563368053,0.00012004,80837.0,80834.0,0.2489]
[1741563368258,0.00012004,80837.0,80836.0,0.125585]
[1741563368463,0.2588,80860.0,80836.0,0.2628555]
[1741563368768,0.32856,80863.0,80853.0,0.3608]
[1741563368963,0.11104,80871.0,80860.0,0.3608]
[1741563369165,0.2176,80882.0,80860.0,0.3608]
[1741563369166,0.00018559,80865.0,80860.0,0.3608]
[1741563369466,5.773e-05,80864.0,80861.0,0.4876]
[1741563370060,5.773e-05,80864.0,80863.0,0.1236882]
[1741563370255,0.2176,80882.0,80863.0,0.3608]
[1741563370461,0.2533,80898.0,80879.0,0.3608]
[1741563370657,0.2533,80898.0,80888.0,0.3608]
[1741563370859,0.3226181,80897.0,80889.0,0.4876]
[1741563371064,0.1236435,80893.0,80889.0,0.4876]
[1741563371259,0.00185582,80899.0,80889.0,0.4876]
[1741563371467,0.0618173,80898.0,80889.0,0.4876]
[1741563371658,0.1236561,80884.0,80883.0,0.00018546]
[1741563371859,0.0618311,80880.0,80863.0,0.009284]
[1741563372059,0.1236851,80865.0,80864.0,0.4876]
[1741563372259,0.0618411,80867.0,80860.0,0.0001225]
[1741563372464,0.1236912,80861.0,80860.0,0.0001225]
[1741563372763,0.1236912,80861.0,80831.0,0.3608]
[1741563372764,0.1237035,80853.0,80831.0,0.3608]
[1741563372963,0.4845035,80853.0,80832.0,0.5049]
[1741563373165,0.4845035,80853.0,80844.0,0.00018546]
[1741563373566,0.4845035,80853.0,80845.0,0.2443]
[1741563373764,0.74931068,80853.0,80845.0,0.2443]
[1741563374161,0.38851068,80853.0,80845.0,0.2443]
[1741563374367,0.51151181,80853.0,80845.0,0.2443]
[1741563374568,0.00010718,80853.0,80845.0,0.2443]
[1741563374777,0.00010718,80853.0,80852.0,0.63636014]
[1741563374971,0.00018546,80861.0,80860.0,0.1236928]
[1741563375179,0.01170742,80873.0,80860.0,0.3608]
[1741563375364,0.3608,80861.0,80852.0,0.00185514]
[1741563375568,0.1237126,80847.0,80846.0,0.2483]
[1741563376167,0.1237479,80824.0,80823.0,0.3608]
[1741563376371,0.1237479,80824.0,80823.0,0.2483]
[1741563376677,0.77931402,80833.0,80823.0,0.6091]
[1741563376869,0.1237455,80826.0,80823.0,0.6091]
[1741563377072,0.3608,80833.0,80823.0,0.6091]
[1741563377266,0.3608,80833.0,80824.0,0.3608]
[1741563377267,0.1237463,80825.0,80824.0,0.3608]
[1741563377470,0.1237494,80823.0,80822.0,0.00937117]
[1741563377680,0.1237524,80821.0,80820.0,0.00018559]
[1741563378180,0.2347524,80821.0,80820.0,0.00018559]
[1741563378774,0.5955524,80821.0,80820.0,0.00018559]
[1741563378980,0.1237708,80809.0,80807.0,0.00185616]
[1741563379178,0.1237708,80809.0,80808.0,0.61731292]
[1741563379476,0.1237708,80809.0,80808.0,0.49101513]
[1741563379680,0.2504,80812.0,80808.0,0.49101513]
[1741563379878,0.2504,80812.0,80809.0,0.3608]
[1741563380178,0.2504,80812.0,80808.0,0.49101513]
[1741563380179,0.1237708,80809.0,80808.0,0.49101513]
[1741563380575,0.4845708,80809.0,80808.0,0.49101513]
[1741563380878,0.00018559,80819.0,80808.0,0.86090175]
[1741563381177,0.00018559,80819.0,80818.0,0.3608]
[1741563381676,0.00185686,80839.0,80818.0,1.8608]
[1741563381879,0.12558196,80839.0,80835.0,0.3608]
[1741563382080,0.123728,80837.0,80836.0,0.5207]
[1741563382275,0.00185686,80839.0,80818.0,0.362]
[1741563382475,0.41851402,80828.0,80815.0,0.111]
[1741563382777,0.41851402,80828.0,80820.0,0.00018559]
[1741563382778,0.1237524,80821.0,80820.0,0.00018559]
[1741563382973,0.5955524,80821.0,80820.0,9e-08]
[1741563383668,0.5955524,80821.0,80808.0,0.00011513]
[1741563383870,0.1237708,80809.0,80808.0,0.00011513]
[1741563384074,0.32903045,80809.0,80794.0,0.3608]
[1741563384274,0.1237831,80801.0,80794.0,0.3608]
[1741563384480,0.1027831,80801.0,80790.0,0.263]
[1741563384681,0.1237984,80791.0,80790.0,0.263]
[1741563385773,0.12392885,80791.0,80790.0,0.263]
[1741563386170,0.00013045,80791.0,80790.0,0.263]
[1741563386572,0.00013045,80791.0,80790.0,0.7475999]
[1741563386772,0.11096,80801.0,80790.0,0.6238]
[1741563386978,0.1237831,80801.0,80800.0,0.3608]
[1741563387277,0.1237984,80791.0,80790.0,0.625]
[1741563387476,0.1237984,80791.0,80790.0,0.6238]
[1741563388079,0.1728975,80794.0,80790.0,0.6238]
[1741563388273,0.2656,80799.0,80790.0,0.6238]
[1741563388477,0.21808559,80809.0,80798.0,0.3608]
[1741563388682,0.00018559,80809.0,80805.0,0.3608]
[1741563388983,0.00018559,80809.0,80806.0,0.2503]
[1741563389385,0.00018559,80809.0,80806.0,0.18839631]
[1741563389583,0.00018559,80809.0,80806.0,0.06462141]
[1741563390083,0.00018559,80809.0,80808.0,0.4845724]
[1741563390590,0.00018559,80809.0,80808.0,0.3608]
[1741563391180,0.00018559,80809.0,80808.0,0.4845724]
[1741563391583,0.00018559,80809.0,80808.0,0.3608]
[1741563391985,0.00018559,80809.0,80808.0,0.4845724]
[1741563392186,0.41851402,80830.0,80808.0,0.3608]
[1741563392394,0.11013077,80836.0,80829.0,0.1237392]
[1741563392587,0.11013077,80836.0,80835.0,0.3608]
[1741563392886,0.1237371,80831.0,80830.0,0.5092]
[1741563393278,0.11013077,80836.0,80830.0,0.5092]
[1741563393487,0.11013077,80836.0,80835.0,0.3608]
[1741563394190,0.00018559,80839.0,80835.0,0.3608]
[1741563394389,0.00018559,80839.0,80836.0,0.5019]
[1741563395089,0.00018559,80839.0,80838.0,0.1237264]
[1741563395296,0.00018559,80839.0,80837.0,0.11096]
[1741563395789,0.12391049,80839.0,80838.0,0.2585]
[1741563396496,0.00018559,80839.0,80838.0,0.2585]
[1741563396691,0.12391049,80839.0,80838.0,0.2585]
[1741563396893,0.37391049,80839.0,80838.0,0.2585]
[1741563397095,0.25018559,80839.0,80838.0,0.2585]
[1741563397493,0.00018559,80839.0,80838.0,0.2585]
[1741563397792,0.00018559,80839.0,80838.0,0.7430264]
[1741563397994,0.00018559,80839.0,80838.0,0.6193]
[1741563398391,0.00018559,80839.0,80838.0,0.865]
[1741563398698,0.00018559,80839.0,80838.0,1.2258]
[1741563399197,0.00018559,80839.0,80838.0,0.865]
[1741563399991,0.1237137,80847.0,80838.0,0.865]
[1741563400186,0.1237207,80842.0,80838.0,0.865]
[1741563400787,0.2494,80846.0,80838.0,0.865]
[1741563400998,0.1237249,80839.0,80838.0,0.865]
[1741563401194,0.2494,80846.0,80838.0,0.865]
[1741563401399,0.1237176,80844.0,80838.0,0.865]
[1741563401702,0.00018559,80850.0,80838.0,0.865]
[1741563402301,0.1237201,80843.0,80838.0,0.865]
[1741563402501,0.1237249,80839.0,80838.0,0.865]
[1741563402902,0.0618615,80841.0,80838.0,0.865]
[1741563403090,0.00018559,80850.0,80838.0,0.865]
[1741563403298,0.2456,80849.0,80838.0,0.865]
[1741563403498,0.3074548,80849.0,80838.0,0.865]
[1741563403799,0.2456,80849.0,80838.0,0.865]
[1741563404398,0.3693103,80849.0,80838.0,0.865]
[1741563404592,0.1237117,80848.0,80838.0,0.865]
[1741563404799,0.2456,80849.0,80838.0,0.865]
[1741563404995,0.1237114,80848.0,80838.0,0.865]
[1741563405195,0.1237114,80848.0,80845.0,0.3608]
[1741563405507,0.00018559,80850.0,80846.0,0.5138]
[1741563405805,0.11013077,80870.0,80853.0,0.1237028]
[1741563406105,0.91732229,80870.0,80869.0,0.3608]
[1741563406407,1.57763077,80870.0,80838.0,0.3608]
[1741563406706,0.1237235,80840.0,80838.0,0.3608]
[1741563406901,0.8714976,80869.0,80846.0,0.00018559]
[1741563406902,0.00018559,80862.0,80846.0,0.00018559]
[1741563407116,0.41851402,80860.0,80846.0,0.00018559]
[1741563407304,0.11084,80859.0,80846.0,0.00018559]
[1741563407505,0.1237126,80847.0,80846.0,0.00018559]
[1741563407707,0.1007126,80847.0,80846.0,0.51628559]
[1741563407902,0.1007126,80847.0,80846.0,0.25148559]
[1741563408499,0.6287126,80847.0,80846.0,0.61228559]
[1741563408699,0.265,80847.0,80846.0,0.61228559]
[1741563408901,0.11084,80859.0,80846.0,0.67414229]
[1741563409102,0.00018559,80862.0,80855.0,0.3608]
[1741563409302,0.11013077,80867.0,80866.0,0.1236836]
[1741563409504,0.11013077,80867.0,80866.0,0.4844836]
[1741563409706,0.21953543,80880.0,80866.0,0.55527368]
[1741563409902,0.17624379,80880.0,80879.0,0.7216]
[1741563410109,0.17624379,80880.0,80879.0,0.88609305]
[1741563410308,0.29990599,80880.0,80879.0,0.52529305]
[1741563410505,0.29990599,80880.0,80879.0,0.36997937]
[1741563411003,0.29990599,80880.0,80872.0,0.00112]
[1741563411004,0.17624379,80880.0,80872.0,0.00112]
[1741563411209,0.1236744,80872.0,80871.0,0.00018546]
[1741563411408,0.1236744,80872.0,80871.0,0.04472006]
[1741563411802,0.4917,80873.0,80871.0,0.00945389]
[1741563411998,0.2538,80872.0,80871.0,0.00945389]
[1741563412199,0.41851402,80890.0,80871.0,0.05397751]
[1741563412200,0.2479,80880.0,80871.0,0.05397751]
[1741563412406,0.1236744,80872.0,80871.0,0.00018546]
[1741563412907,0.13596559,80872.0,80871.0,0.00018546]
[1741563413115,0.13596559,80872.0,80871.0,0.24968546]
[1741563413312,0.3774744,80872.0,80871.0,0.00018546]
[1741563414715,0.2538,80872.0,80871.0,0.24968546]
[1741563415016,0.3774744,80872.0,80871.0,0.24968546]
[1741563415415,0.3544744,80872.0,80871.0,0.24968546]
[1741563416913,0.51851402,80900.0,80871.0,0.24968546]
[1741563417108,0.05671699,80900.0,80887.0,0.7216]
[1741563417311,0.01343398,80900.0,80899.0,0.3608]
[1741563417615,0.13706558,80900.0,80899.0,0.04446829]
[1741563417916,0.1236438,80892.0,80891.0,0.3608]
[1741563418307,0.36376,80893.0,80891.0,0.3608]
[1741563418510,0.61116,80893.0,80891.0,0.3608]
[1741563419010,0.1236546,80885.0,80883.0,0.00018546]
[1741563419203,0.2474,80884.0,80883.0,0.00018546]
[1741563420215,0.25918129,80884.0,80883.0,0.00018546]
[1741563420413,0.38283739,80884.0,80883.0,0.00018546]
[1741563420714,0.1236759,80871.0,80868.0,0.00906805]
[1741563420918,0.11072,80871.0,80855.0,0.44165646]
[1741563421116,0.1237157,80845.0,80834.0,0.3608]
[1741563421413,0.11072,80845.0,80844.0,0.44873037]
[1741563421620,0.01234553,80851.0,80844.0,0.80953037]
[1741563421805,0.061854,80850.0,80845.0,0.2486]
[1741563422007,0.1237157,80845.0,80844.0,0.44989037]
[1741563422212,9.485e-05,80849.0,80844.0,0.44873037]
[1741563422408,0.25609485,80849.0,80839.0,0.2486]
[1741563422614,9.485e-05,80849.0,80848.0,0.1237111]
[1741563422811,0.2176,80871.0,80848.0,0.2486]
[1741563423024,0.00064,80884.0,80867.0,0.4844813]
[1741563423219,0.01196761,80887.0,80879.0,0.3608]
[1741563423420,0.01196761,80887.0,80886.0,0.3608]
[1741563423612,0.3419276,80890.0,80886.0,0.3608]
[1741563423809,0.256,80889.0,80887.0,0.2486]
[1741563424023,0.0618186,80897.0,80887.0,0.2486]
[1741563424024,0.00018486,80895.0,80887.0,0.3722515]
[1741563424209,0.00018486,80895.0,80887.0,0.6329715]
[1741563424413,0.00018486,80895.0,80894.0,0.4844408]
[1741563424822,0.11072,80915.0,80899.0,0.1236331]
[1741563425021,0.21764,80927.0,80899.0,0.62152]
[1741563425220,0.21764,80927.0,80925.0,0.3608]
[1741563425421,0.11072,80934.0,80926.0,0.6046]
[1741563425613,0.3608,80930.0,80915.0,0.3608]
[1741563425816,0.3608,80920.0,80908.0,0.3608]
[1741563426018,0.3608,80913.0,80898.0,0.3608]
[1741563426226,0.1236331,80899.0,80898.0,0.3608]
[1741563426420,0.1236347,80898.0,80897.0,0.00018535]
[1741563426725,0.3608,80921.0,80897.0,0.36098535]
[1741563426917,0.1236117,80913.0,80912.0,0.3608]
[1741563427219,0.3608,80914.0,80898.0,0.2466]
[1741563427410,0.41851402,80910.0,80898.0,0.2466]
[1741563427611,0.5062,80909.0,80898.0,0.2466]
[1741563427914,0.0618097,80908.0,80898.0,0.2466]
[1741563428312,0.2657,80907.0,80898.0,0.2466]
[1741563428723,0.01,80969.0,80898.0,0.2466]
[1741563428915,0.3608,80925.0,80910.0,0.3608]
[1741563429115,0.3608,80925.0,80911.0,0.5067]
[1741563429116,0.1236035,80919.0,80911.0,0.5067]
[1741563429323,0.2657,80924.0,80911.0,0.5067]
[1741563429632,0.1236133,80912.0,80911.0,0.5067]
[1741563430323,0.5138,80913.0,80907.0,0.00018535]
[1741563430527,0.1236194,80908.0,80907.0,0.00018535]
[1741563430730,0.47144,80908.0,80887.0,0.5074]
[1741563430922,0.1006499,80888.0,80887.0,0.5074]
[1741563431119,0.3608,80888.0,80870.0,0.11064]
[1741563431423,0.1236453,80892.0,80886.0,0.3608]
[1741563431619,0.2179,80903.0,80887.0,0.5074]
[1741563431819,0.2179,80903.0,80897.0,0.3608]
[1741563432021,0.21808497,80903.0,80898.0,0.5074]
[1741563432619,0.34171227,80903.0,80898.0,0.5074]
[1741563432818,0.1236331,80899.0,80898.0,0.5074]
[1741563433023,0.0618142,80902.0,80898.0,0.5074]
[1741563433024,0.2403,80902.0,80898.0,0.5074]
[1741563433330,0.21808497,80903.0,80898.0,0.5074]
[1741563433635,0.1236301,80901.0,80898.0,0.5074]
[1741563433820,0.1236331,80899.0,80898.0,0.5074]
[1741563434132,0.21808497,80903.0,80898.0,0.5074]
[1741563434323,0.21808497,80903.0,80898.0,0.8682]
[1741563434524,0.1236331,80899.0,80898.0,0.8682]
[1741563434832,0.1236331,80899.0,80887.0,0.00018535]
[1741563434833,0.1236499,80888.0,80887.0,5e-08]
[1741563435022,0.1236499,80888.0,80855.0,0.4714]
[1741563435023,0.1236698,80875.0,80866.0,0.2554]
[1741563435218,0.2342698,80875.0,80868.0,0.00907542]
[1741563435524,0.2342698,80875.0,80855.0,0.3608]
[1741563435525,0.26070504,80875.0,80855.0,0.3608]
[1741563435719,0.26070504,80875.0,80848.0,0.1106]
[1741563435720,0.1236912,80861.0,80860.0,0.4993]
[1741563435925,0.72944,80874.0,80860.0,0.8601]
[1741563436128,0.00018547,80869.0,80860.0,0.8601]
[1741563436335,0.00018547,80869.0,80862.0,0.1236887]
[1741563436633,0.00018547,80869.0,80860.0,0.8601]
[1741563436634,0.00018547,80869.0,80860.0,0.86146]
[1741563436819,0.1236825,80867.0,80860.0,0.8601]
[1741563437024,0.00018547,80869.0,80860.0,1.2209]
[1741563437219,0.00018547,80869.0,80868.0,0.3608]
[1741563437733,0.00010504,80875.0,80868.0,0.3608]
[1741563437930,0.00010504,80875.0,80860.0,0.36212]
[1741563438128,0.00010504,80875.0,80860.0,0.3608]
[1741563438332,0.1236802,80869.0,80860.0,0.3608]
[1741563438632,0.1236912,80861.0,80860.0,0.3608]
[1741563438934,0.1237035,80853.0,80852.0,0.00018547]
[1741563439133,0.1106,80863.0,80852.0,0.36098547]
[1741563439432,0.255,80862.0,80852.0,0.36098547]
[1741563439929,0.1236996,80856.0,80852.0,0.36098547]
[1741563440134,0.5591449,80862.0,80852.0,0.36098547]
[1741563440334,0.1237035,80853.0,80852.0,0.36098547]
[1741563440534,0.12382685,80853.0,80852.0,0.37027393]
[1741563440732,0.13577074,80853.0,80852.0,0.36098547]
[1741563441031,0.24637074,80853.0,80852.0,0.36098547]
[1741563441238,0.24637074,80853.0,80836.0,0.3608]
[1741563441239,0.1237111,80848.0,80847.0,0.00913448]
[1741563441428,0.4845111,80848.0,80847.0,0.00913448]
[1741563441623,0.3608,80848.0,80837.0,0.3608]
[1741563441828,0.255,80847.0,80837.0,0.3608]
[1741563442127,0.1237218,80841.0,80837.0,0.3608]
[1741563442322,0.1237218,80841.0,80830.0,1.50136]
[1741563442323,0.1237218,80841.0,80832.0,0.00018547]
[1741563443031,0.1237218,80841.0,80838.0,0.01104097]
[1741563443227,0.367521,80842.0,80838.0,0.01104097]
[1741563443537,0.1237218,80841.0,80838.0,0.01104097]
[1741563444131,0.1237218,80841.0,80838.0,0.00185547]
[1741563444431,0.1237249,80839.0,80838.0,0.00179334]
[1741563445235,0.27387703,80839.0,80838.0,0.00179334]
[1741563445429,0.1237341,80833.0,80832.0,0.00018547]
[1741563445627,0.4845341,80833.0,80832.0,0.00018547]
[1741563446035,0.7353341,80833.0,80832.0,0.00018547]
[1741563446233,1.1462341,80833.0,80832.0,0.00018547]
[1741563446432,0.9872341,80833.0,80832.0,0.00018547]
[1741563447227,1.0978341,80833.0,80832.0,0.00018547]
[1741563447428,0.4714,80833.0,80832.0,0.00018547]
[1741563447635,0.3608,80833.0,80832.0,0.00018547]
[1741563447837,0.2179,80838.0,80832.0,0.00018547]
[1741563448238,0.3416264,80838.0,80837.0,1.5]
[1741563448434,0.3416264,80838.0,80832.0,0.00018547]
[1741563448435,0.2179,80838.0,80832.0,0.00018547]
[1741563448631,0.4845341,80833.0,80832.0,0.00018547]
[1741563448835,0.5951341,80833.0,80832.0,0.00018547]
[1741563449445,0.4714,80833.0,80832.0,0.00018547]
[1741563449743,0.5951341,80833.0,80832.0,0.00018547]
[1741563454145,0.5721341,80833.0,80832.0,0.00018547]
[1741563454747,0.5720941,80833.0,80832.0,0.00018547]
[1741563455742,0.4615341,80833.0,80832.0,0.00018547]
[1741563458049,0.3378,80833.0,80832.0,0.00018547]
[1741563458239,0.4615341,80833.0,80832.0,0.00018547]
[1741563458845,0.7248341,80833.0,80832.0,0.00018547]
[1741563459042,1.0856341,80833.0,80832.0,7e-08]
[1741563459245,1.23576244,80833.0,80832.0,7e-08]
[1741563459445,1.3298,80833.0,80809.0,0.5244]
[1741563459658,0.1237693,80810.0,80809.0,0.5244]
[1741563459954,0.12386669,80810.0,80809.0,0.5244]
[1741563460156,0.63626669,80810.0,80809.0,0.5244]
[1741563461446,0.37296669,80810.0,80809.0,0.5244]
[1741563462050,0.36596669,80810.0,80809.0,0.5244]
[1741563462648,0.36596669,80810.0,80801.0,0.0001856]
[1741563462649,0.1237815,80802.0,80801.0,0.0001856]
[1741563462840,0.1237815,80802.0,80793.0,0.00013622]
[1741563462841,0.47144101,80802.0,80793.0,0.00013622]
[1741563463045,0.4845938,80794.0,80793.0,0.00013622]
[1741563463255,0.7023138,80794.0,80793.0,0.00013622]
[1741563463849,1.1968138,80794.0,80793.0,0.00013622]
[1741563465253,1.19697405,80794.0,80793.0,0.00013622]
[1741563467845,0.81299405,80794.0,80793.0,0.00013622]
[1741563468051,0.81299405,80794.0,80793.0,0.24103622]
[1741563468251,0.81299405,80794.0,80793.0,1.74103622]
[1741563469051,0.81299405,80794.0,80793.0,0.24103622]
[1741563469650,0.57868025,80794.0,80793.0,0.24103622]
[1741563469854,0.21788025,80794.0,80793.0,0.24103622]
[1741563470051,0.34167405,80794.0,80793.0,0.24103622]
[1741563470251,0.70247405,80794.0,80793.0,0.24103622]
[1741563470755,0.68747405,80794.0,80793.0,0.00013622]
[1741563470957,1.19747405,80794.0,80793.0,0.00013622]
[1741563474059,0.1238061,80786.0,80785.0,0.0001856]
[1741563474261,0.5950861,80786.0,80785.0,0.0001856]
[1741563475153,0.60705415,80786.0,80785.0,0.0001856]
[1741563475354,0.56432025,80794.0,80789.0,0.123801]
[1741563475355,0.56368025,80794.0,80789.0,0.123801]
[1741563475560,0.11048,80793.0,80790.0,0.7554]
[1741563475763,0.1237984,80791.0,80790.0,0.7554]
[1741563475963,0.1237954,80793.0,80790.0,0.7554]
[1741563476160,0.20288025,80794.0,80790.0,0.7554]
[1741563476562,0.20288025,80794.0,80791.0,0.3608]
[1741563476955,0.1237953,80793.0,80792.0,0.5136]
[1741563477157,0.3852953,80793.0,80792.0,0.5136]
[1741563477357,0.1238061,80786.0,80785.0,0.0001856]
[1741563477655,0.5950861,80786.0,80785.0,0.0001856]
[1741563478358,0.5850861,80786.0,80785.0,0.0001856]
[1741563480069,0.00016025,80794.0,80785.0,0.1501856]
[1741563480258,0.0001856,80802.0,80793.0,0.7216]
[1741563480455,0.1237938,80794.0,80793.0,0.3608]
[1741563480762,0.0001856,80802.0,80793.0,0.3608]
[1741563481069,0.0001856,80802.0,80800.0,0.3608]
[1741563481256,0.1239674,80802.0,80801.0,0.252]
[1741563481458,0.1237831,80801.0,80800.0,0.3608]
[1741563481663,0.4744231,80801.0,80800.0,0.3608]
[1741563481865,0.7300231,80801.0,80800.0,0.3608]
[1741563483069,0.1237938,80794.0,80793.0,0.3608]
[1741563483675,0.123803,80788.0,80787.0,0.23903525]
[1741563483877,0.234243,80788.0,80787.0,0.23903525]
[1741563485668,0.234243,80788.0,80787.0,0.59983525]
[1741563486066,0.00010058,80794.0,80787.0,0.59983525]
[1741563486266,0.1244648,80797.0,80791.0,0.1237973]
[1741563486468,0.1244648,80797.0,80796.0,0.3608]
[1741563486676,0.248254,80797.0,80796.0,0.3608]
[1741563486872,0.1244648,80797.0,80796.0,0.3608]
[1741563487378,0.24835622,80797.0,80796.0,0.3608]
[1741563487768,0.00010222,80797.0,80796.0,0.3608]
[1741563487967,0.00010222,80797.0,80793.0,0.264]
[1741563488268,0.1856868,80796.0,80795.0,0.2478]
[1741563488870,0.00010222,80797.0,80795.0,0.2478]
[1741563489175,0.12389142,80797.0,80796.0,0.65068672]
[1741563490775,0.36579142,80797.0,80796.0,0.65068672]
[1741563490976,0.61259142,80797.0,80796.0,0.6137]
[1741563491165,0.61259142,80797.0,80796.0,0.59975635]
[1741563491369,0.61259142,80797.0,80796.0,0.23895635]
[1741563491578,0.61259142,80797.0,80796.0,0.27594307]
[1741563492875,0.12389142,80797.0,80796.0,0.27594307]
[1741563493078,0.12389142,80797.0,80796.0,0.63674307]
[1741563493375,0.12389142,80797.0,80796.0,0.68162641]
[1741563493777,0.12389142,80797.0,80796.0,0.32082641]
[1741563494075,0.10089142,80797.0,80796.0,0.32082641]
[1741563494280,0.10089142,80797.0,80796.0,0.23895635]
[1741563494764,0.10089142,80797.0,80796.0,0.59975635]
[1741563494965,0.10089142,80797.0,80796.0,0.23895635]
[1741563495872,0.10089142,80797.0,80796.0,0.27594307]
[1741563496069,0.10089142,80797.0,80796.0,0.32088688]
[1741563496270,0.35169142,80797.0,80796.0,0.32088688]
[1741563496567,0.35169142,80797.0,80796.0,0.02945803]
[1741563496880,0.35169142,80797.0,80785.0,0.0001856]
[1741563496881,0.1238061,80786.0,80785.0,0.0001856]
[1741563497075,0.1238107,80783.0,80782.0,0.2662]
[1741563497377,0.1238107,80783.0,80782.0,0.56677763]
[1741563498979,0.1238107,80783.0,80782.0,0.2662]
[1741563499574,0.0619084,80779.0,80775.0,0.256]
[1741563499877,0.1238229,80775.0,80774.0,0.0001856]
[1741563500077,0.2341429,80775.0,80774.0,8e-08]
[1741563500280,0.7485429,80775.0,80774.0,8e-08]
[1741563500475,0.1238337,80768.0,80767.0,8e-08]
[1741563500683,0.4846337,80768.0,80767.0,8e-08]
[1741563500979,0.1238444,80761.0,80760.0,0.24390008]
[1741563501179,0.3608,80761.0,80760.0,0.04417919]
[1741563501478,0.1238459,80760.0,80759.0,0.265585]
[1741563501678,0.6382459,80760.0,80751.0,0.2439]
[1741563501881,0.1238597,80751.0,80750.0,0.57034129]
[1741563502075,0.1238919,80730.0,80724.0,0.01226133]